bitfinex/quotes_BTCUSD_20241011
["timestamp","ask_amount","ask_price","bid_price","bid_amount"]
[1728654811116,0.0162473,61732.0,61730.0,1.06254651]
[1728654811901,0.0005,61739.0,61738.0,0.35396995]
[1728654812113,0.0005,61739.0,61738.0,0.52327925]
[1728654812334,0.0005,61739.0,61738.0,0.53254055]
[1728654813267,0.0005,61739.0,61738.0,0.54654055]
[1728654813978,0.0005,61739.0,61738.0,0.55554055]
[1728654815194,0.0005,61739.0,61738.0,0.57854055]
[1728654815439,0.0005,61739.0,61738.0,0.89634055]
[1728654815888,0.0005,61739.0,61738.0,0.89834055]
[1728654817325,0.0005,61739.0,61738.0,0.88934055]
[1728654817584,0.0005,61739.0,61738.0,1.04614055]
[1728654817812,0.0005,61739.0,61738.0,0.88734055]
[1728654818061,0.0005,61739.0,61738.0,0.90334055]
[1728654818299,0.0005,61739.0,61738.0,0.88934055]
[1728654818778,0.0005,61739.0,61738.0,0.4735446]
[1728654819009,0.0005,61739.0,61738.0,0.66554055]
[1728654819257,0.0005,61739.0,61738.0,0.65154055]
[1728654819521,0.0005,61739.0,61738.0,0.66554055]
[1728654819778,0.0005,61739.0,61738.0,0.65154055]
[1728654820001,0.0005,61739.0,61738.0,0.67454055]
[1728654820257,0.001318,61739.0,61738.0,0.67454055]
[1728654821213,0.001318,61739.0,61738.0,0.68854055]
[1728654821977,0.001318,61739.0,61738.0,0.69054055]
[1728654822211,0.001318,61739.0,61738.0,0.76484055]
[1728654823157,0.001318,61739.0,61738.0,0.76284055]
[1728654823390,0.001318,61739.0,61738.0,0.68354055]
[1728654824816,0.001318,61739.0,61738.0,0.68554055]
[1728654825050,0.001318,61739.0,61738.0,0.68354055]
[1728654829535,0.0005,61759.0,61738.0,0.68354055]
[1728654829536,0.002,61788.0,61783.0,0.005]
[1728654829779,0.002,61788.0,61787.0,0.166846]
[1728654830028,0.002,61788.0,61787.0,0.29308196]
[1728654830280,0.002,61788.0,61787.0,0.30384768]
[1728654830526,0.002,61788.0,61787.0,0.27761172]
[1728654830756,0.002,61788.0,61787.0,0.2808478]
[1728654831005,0.002,61788.0,61787.0,0.27761172]
[1728654831260,0.002,61788.0,61787.0,0.30061172]
[1728654831505,0.002,61788.0,61787.0,0.28661172]
[1728654832407,0.002,61788.0,61787.0,0.30061172]
[1728654832631,0.002,61788.0,61787.0,0.27261172]
[1728654832850,0.002,61788.0,61787.0,0.28661172]
[1728654833787,0.002818,61788.0,61787.0,0.30061172]
[1728654834703,0.002818,61788.0,61787.0,0.3038479]
[1728654835153,0.002818,61788.0,61787.0,0.3268479]
[1728654835373,0.002818,61788.0,61787.0,0.32361172]
[1728654836739,0.002818,61788.0,61787.0,0.49292102]
[1728654838381,0.002818,61788.0,61787.0,0.46992102]
[1728654840503,0.002818,61788.0,61787.0,0.71268857]
[1728654840778,0.002818,61788.0,61787.0,0.49292102]
[1728654840975,0.002818,61788.0,61787.0,0.68491697]
[1728654841462,0.0001,61804.0,61803.0,0.166804]
[1728654841679,0.24276755,61807.0,61806.0,0.289796]
[1728654841892,0.24276755,61807.0,61806.0,0.48179195]
[1728654842142,0.24876755,61814.0,61813.0,0.161778]
[1728654842373,0.24876755,61814.0,61811.0,0.323566]
[1728654842374,0.077,61813.0,61812.0,0.16178]
[1728654842845,0.077,61813.0,61803.0,0.19199595]
[1728654843059,0.077,61813.0,61809.0,0.323572]
[1728654843275,0.077,61813.0,61806.0,0.014]
[1728654843276,0.400561,61813.0,61807.0,0.323587]
[1728654843508,0.400561,61813.0,61810.0,0.161783]
[1728654843509,0.077,61813.0,61810.0,0.161783]
[1728654843729,0.077,61813.0,61808.0,0.323582]
[1728654844192,0.077,61813.0,61812.0,0.014]
[1728654844401,0.238778,61813.0,61812.0,0.014]
[1728654844632,0.077,61813.0,61812.0,0.028]
[1728654844840,0.006818,61814.0,61813.0,0.161778]
[1728654845058,0.006818,61814.0,61813.0,0.35732199]
[1728654845281,0.006818,61814.0,61813.0,0.3540873]
[1728654845501,0.006818,61814.0,61813.0,0.4540873]
[1728654845924,0.006818,61814.0,61813.0,0.4680873]
[1728654846137,0.006818,61814.0,61813.0,0.4540873]
[1728654846569,0.006818,61814.0,61813.0,0.4680873]
[1728654846780,0.006818,61814.0,61813.0,0.4450873]
[1728654846992,0.006818,61814.0,61813.0,0.4310873]
[1728654847425,0.006818,61814.0,61813.0,0.4450873]
[1728654847920,0.006818,61814.0,61813.0,0.4680873]
[1728654848417,0.006818,61814.0,61813.0,0.4450873]
[1728654848645,0.006818,61814.0,61813.0,0.3450873]
[1728654848858,0.006818,61814.0,61813.0,0.3310873]
[1728654849076,0.006818,61814.0,61813.0,0.3450873]
[1728654849299,0.006818,61814.0,61813.0,0.3590873]
[1728654849522,0.006818,61814.0,61813.0,0.3310873]
[1728654849781,0.006818,61814.0,61813.0,0.3590873]
[1728654850016,0.006818,61814.0,61813.0,0.4820873]
[1728654850238,0.006318,61814.0,61813.0,0.4820873]
[1728654850486,0.006318,61814.0,61813.0,0.4680873]
[1728654851341,0.006318,61814.0,61813.0,0.4730873]
[1728654851568,0.002,61824.0,61815.0,0.284773]
[1728654851781,0.002,61824.0,61815.0,0.64607825]
[1728654852490,0.002,61824.0,61815.0,0.4310823]
[1728654852698,0.002,61824.0,61815.0,0.67384985]
[1728654852906,0.002,61824.0,61815.0,0.4450823]
[1728654853358,0.002,61824.0,61815.0,0.3310823]
[1728654853581,0.002,61824.0,61815.0,0.58684985]
[1728654853789,0.002,61824.0,61815.0,0.3580823]
[1728654854244,0.10697842,61816.0,61815.0,0.188773]
[1728654854485,0.10697842,61816.0,61815.0,0.027]
[1728654854705,0.31184826,61816.0,61815.0,0.027]
[1728654854966,0.26874842,61816.0,61815.0,0.027]
[1728654855202,0.26874842,61816.0,61815.0,0.014]
[1728654855408,0.26874842,61816.0,61815.0,0.028]
[1728654855627,0.26874842,61816.0,61799.0,0.24276755]
[1728654855628,0.002,61811.0,61802.0,0.24276755]
[1728654855845,0.161804,61803.0,61802.0,0.24276755]
[1728654856342,0.161846,61787.0,61786.0,0.24276755]
[1728654856787,0.161846,61787.0,61776.0,0.24276755]
[1728654856788,0.161872,61777.0,61776.0,0.24276755]
[1728654857491,0.161872,61777.0,61769.0,0.56655055]
[1728654857492,0.161876,61776.0,61772.0,0.161884]
[1728654857719,0.323732,61780.0,61770.0,0.32378]
[1728654857973,0.161865,61780.0,61771.0,0.323775]
[1728654858203,0.161865,61780.0,61750.0,0.19199595]
[1728654858204,0.323817,61764.0,61757.0,0.24276755]
[1728654858456,0.161919,61759.0,61758.0,0.24276755]
[1728654858992,0.0779,61766.0,61758.0,0.24276755]
[1728654859228,0.24276755,61765.0,61758.0,0.01081174]
[1728654859446,0.0779,61766.0,61758.0,0.01081174]
[1728654859661,0.0779,61766.0,61760.0,0.24276755]
[1728654859877,0.0779,61766.0,61762.0,0.16191]
[1728654860107,0.161904,61765.0,61761.0,0.01105249]
[1728654860320,0.0779,61766.0,61763.0,0.0110366]
[1728654860524,0.0779,61766.0,61763.0,0.161909]
[1728654860525,0.001,61765.0,61763.0,0.161909]
[1728654860737,0.0779,61766.0,61760.0,0.32383]
[1728654860950,0.0849,61766.0,61764.0,0.01102866]
[1728654861181,0.0849,61766.0,61762.0,0.16191]
[1728654861182,0.007,61766.0,61765.0,0.161903]
[1728654861412,0.007,61766.0,61765.0,0.17292371]
[1728654862044,0.008,61766.0,61765.0,0.17292371]
[1728654862270,0.008,61766.0,61765.0,0.6518877]
[1728654862510,0.007,61766.0,61765.0,0.36523301]
[1728654862736,0.001,61766.0,61765.0,0.37223301]
[1728654862955,0.24276755,61775.0,61774.0,0.16188]
[1728654863382,0.24276755,61784.0,61774.0,0.01096054]
[1728654863599,0.40462255,61784.0,61777.0,0.16187]
[1728654863854,0.40462255,61784.0,61778.0,0.17279778]
[1728654864088,0.0756,61785.0,61778.0,0.01092878]
[1728654864294,0.161856,61784.0,61778.0,0.01092878]
[1728654864502,0.0756,61785.0,61778.0,0.24276755]
[1728654864707,0.0756,61785.0,61780.0,0.323726]
[1728654864918,0.237452,61785.0,61780.0,0.161863]
[1728654865164,0.0756,61785.0,61781.0,0.17276696]
[1728654865394,0.001,61784.0,61781.0,0.17276696]
[1728654865602,0.001,61784.0,61781.0,0.01090496]
[1728654865816,0.0756,61785.0,61781.0,0.01090496]
[1728654866027,0.0756,61785.0,61737.0,0.84418673]
[1728654866028,0.28341703,61782.0,61780.0,0.01]
[1728654866241,0.44527703,61782.0,61780.0,0.01]
[1728654866451,0.161862,61781.0,61773.0,0.323762]
[1728654866670,0.28341703,61782.0,61776.0,0.161873]
[1728654866671,0.44527603,61782.0,61776.0,0.161873]
[1728654866885,0.44527603,61782.0,61777.0,0.01088699]
[1728654866886,0.161862,61781.0,61777.0,0.01088699]
[1728654867098,0.161862,61781.0,61780.0,0.002]
[1728654867516,0.28341703,61782.0,61780.0,0.01286317]
[1728654867747,0.44527703,61782.0,61776.0,0.161874]
[1728654867980,0.28341703,61782.0,61777.0,0.164871]
[1728654868194,0.28341703,61782.0,61777.0,0.01388699]
[1728654868408,0.161863,61781.0,61777.0,0.01388699]
[1728654868616,0.28341703,61782.0,61777.0,0.17575599]
[1728654868825,0.44527603,61782.0,61777.0,0.17575599]
[1728654869059,0.44627703,61782.0,61780.0,0.013]
[1728654869268,0.161862,61781.0,61780.0,0.013]
[1728654869479,0.162862,61781.0,61780.0,0.02386317]
[1728654869689,0.162862,61781.0,61780.0,0.013]
[1728654869917,0.161872,61777.0,61774.0,0.24276755]
[1728654870382,0.161872,61777.0,61775.0,0.01090287]
[1728654870618,0.10891656,61782.0,61775.0,0.01090287]
[1728654870619,0.076419,61785.0,61776.0,0.24276755]
[1728654870839,0.004,61781.0,61780.0,0.005]
[1728654871054,0.004,61781.0,61780.0,0.01588006]
[1728654871479,0.28341703,61783.0,61780.0,0.01588006]
[1728654871725,0.44527403,61783.0,61780.0,0.005]
[1728654871997,0.44527403,61783.0,61775.0,0.32375]
[1728654871998,0.161859,61782.0,61777.0,0.161872]
[1728654872230,0.161859,61782.0,61772.0,0.323771]
[1728654872231,0.001,61777.0,61774.0,0.011]
[1728654872459,0.323724,61782.0,61769.0,0.001638]
[1728654872460,0.28341703,61778.0,61775.0,0.161877]
[1728654872702,0.28341703,61780.0,61775.0,0.161875]
[1728654872947,0.28341703,61780.0,61777.0,0.161871]
[1728654873178,0.28341703,61780.0,61776.0,0.161874]
[1728654873401,0.001,61777.0,61774.0,0.334758]
[1728654873620,0.001,61778.0,61776.0,0.161873]
[1728654873843,0.001,61778.0,61772.0,0.32377]
[1728654874065,0.001,61778.0,61777.0,0.161872]
[1728654874312,0.28441703,61780.0,61775.0,0.168876]
[1728654874561,0.42570469,61780.0,61775.0,0.00621822]
[1728654874800,0.001,61780.0,61779.0,0.24276755]
[1728654875045,0.001,61780.0,61779.0,0.3311763]
[1728654875277,0.000819,61785.0,61784.0,0.161854]
[1728654875518,0.000819,61785.0,61784.0,0.33440012]
[1728654875751,0.000819,61785.0,61784.0,0.3311633]
[1728654876406,0.000819,61785.0,61784.0,0.161854]
[1728654876873,0.001819,61785.0,61784.0,0.175854]
[1728654877564,0.000819,61785.0,61784.0,0.161854]
[1728654877780,0.001819,61785.0,61784.0,0.171854]
[1728654878268,0.16367,61785.0,61784.0,0.01]
[1728654878493,0.2134061,61785.0,61784.0,0.024]
[1728654878941,0.2124061,61785.0,61784.0,0.014]
[1728654879395,0.2124061,61785.0,61784.0,0.023]
[1728654879396,0.2134061,61785.0,61784.0,0.023]
[1728654879639,0.2124061,61785.0,61784.0,0.009]
[1728654879870,0.2092,61784.0,61775.0,0.24276755]
[1728654880089,0.1693093,61783.0,61777.0,0.001638]
[1728654880525,0.161869,61778.0,61777.0,0.001638]
[1728654880763,0.161868,61779.0,61777.0,0.001638]
[1728654881012,0.161869,61778.0,61777.0,0.001638]
[1728654881684,0.161868,61779.0,61777.0,0.001638]
[1728654882138,0.161869,61778.0,61777.0,0.001638]
[1728654882613,0.162869,61778.0,61777.0,0.009638]
[1728654882850,0.26083203,61778.0,61777.0,0.001638]
[1728654883089,0.26083203,61778.0,61777.0,0.008638]
[1728654883570,0.001,61778.0,61777.0,0.001638]
[1728654883813,0.01509471,61778.0,61777.0,0.009638]
[1728654884045,0.02817086,61778.0,61777.0,0.009638]
[1728654884291,0.22716206,61778.0,61777.0,0.009638]
[1728654885043,0.22716206,61778.0,61777.0,0.001638]
[1728654885293,0.39747136,61778.0,61777.0,0.010638]
[1728654885518,0.5415395,61778.0,61777.0,0.010638]
[1728654885748,0.5415395,61778.0,61777.0,0.012638]
[1728654885978,0.54160511,61778.0,61777.0,0.012638]
[1728654886206,0.54160511,61778.0,61777.0,0.010638]
[1728654886440,0.54260511,61778.0,61777.0,0.010638]
[1728654886914,0.7146766,61778.0,61777.0,0.010638]
[1728654887167,0.54260905,61778.0,61777.0,0.010638]
[1728654887446,0.54260857,61778.0,61777.0,0.010638]
[1728654887694,0.50548637,61778.0,61777.0,0.010638]
[1728654889331,0.34361737,61778.0,61777.0,0.010638]
[1728654889589,0.50548637,61778.0,61777.0,0.010638]
[1728654889850,0.34361737,61778.0,61777.0,0.01858791]
[1728654890104,0.34361737,61778.0,61777.0,0.17251]
[1728654890105,0.04860807,61778.0,61777.0,0.17251]
[1728654890338,0.04860807,61778.0,61777.0,0.010638]
[1728654890811,0.04860807,61778.0,61777.0,0.01858755]
[1728654891346,0.04860807,61778.0,61777.0,0.18045955]
[1728654892107,0.04660807,61778.0,61777.0,0.17145955]
[1728654892355,0.02905546,61778.0,61777.0,0.17145955]
[1728654892602,0.03007334,61778.0,61777.0,0.18045955]
[1728654892846,0.000819,61778.0,61777.0,0.34400604]
[1728654893092,0.0169682,61778.0,61777.0,0.35476885]
[1728654893318,0.0169682,61778.0,61777.0,0.35076885]
[1728654893557,0.001819,61778.0,61777.0,0.35076885]
[1728654893809,0.0169677,61778.0,61777.0,0.35076885]
[1728654894050,0.001819,61778.0,61777.0,0.37376885]
[1728654894761,0.001819,61778.0,61777.0,0.38776885]
[1728654895694,0.001819,61778.0,61777.0,0.19545955]
[1728654897867,0.0290711,61778.0,61777.0,0.03358755]
[1728654898338,0.05329645,61778.0,61777.0,0.03358755]
[1728654898833,0.07267812,61778.0,61777.0,0.03358755]
[1728654899061,0.07267812,61778.0,61777.0,0.19545955]
[1728654899292,0.05329645,61778.0,61777.0,0.03358755]
[1728654899559,0.21516545,61778.0,61777.0,0.03358755]
[1728654899783,0.36744709,61778.0,61777.0,0.02358755]
[1728654900024,0.36744709,61778.0,61777.0,0.015638]
[1728654900255,0.66556056,61778.0,61777.0,0.017638]
[1728654900483,0.07167809,61778.0,61777.0,0.17951]
[1728654900725,0.07167809,61778.0,61777.0,0.017638]
[1728654900959,0.07167809,61778.0,61777.0,0.003638]
[1728654901181,0.07167809,61778.0,61777.0,0.015638]
[1728654901422,0.07167809,61778.0,61777.0,0.013638]
[1728654901646,0.07367809,61778.0,61777.0,0.013638]
[1728654901890,0.07367809,61778.0,61777.0,0.16351]
[1728654902132,0.07167809,61778.0,61777.0,0.16351]
[1728654902366,0.05229645,61778.0,61777.0,0.014638]
[1728654902605,0.05229645,61778.0,61777.0,0.016638]
[1728654902846,0.07167731,61778.0,61777.0,0.17851]
[1728654903076,0.04745196,61778.0,61777.0,0.17851]
[1728654903342,0.0280711,61778.0,61777.0,0.17851]
[1728654903871,0.01595889,61778.0,61777.0,0.17851]
[1728654904357,0.000819,61778.0,61777.0,0.17851]
[1728654904841,0.000819,61778.0,61777.0,0.3458193]
[1728654905068,0.000819,61778.0,61777.0,0.3328193]
[1728654905301,0.000819,61778.0,61777.0,0.3518193]
[1728654905776,0.000819,61778.0,61777.0,0.3468193]
[1728654906004,0.000819,61778.0,61777.0,0.3558193]
[1728654906292,0.000819,61778.0,61777.0,0.40364577]
[1728654906706,0.000819,61778.0,61777.0,0.6867844]
[1728654908590,0.000819,61778.0,61777.0,0.84965793]
[1728654908858,0.000819,61778.0,61777.0,1.16352339]
[1728654909098,0.000819,61778.0,61777.0,1.18743662]
[1728654910041,0.000819,61778.0,61777.0,1.06787044]
[1728654910287,0.000819,61778.0,61777.0,1.06718868]
[1728654910509,0.000819,61778.0,61777.0,1.17769522]
[1728654910755,0.000819,61778.0,61777.0,1.19207935]
[1728654911227,0.000819,61778.0,61777.0,1.20607935]
[1728654911482,0.000819,61778.0,61777.0,1.05857281]
[1728654911725,0.000819,61778.0,61777.0,1.08657281]
[1728654911944,0.000819,61778.0,61777.0,0.88301431]
[1728654912189,0.000819,61778.0,61777.0,0.62959415]
[1728654912415,0.000819,61778.0,61777.0,0.4748193]
[1728654912637,0.000819,61778.0,61777.0,0.4768193]
[1728654912871,0.000819,61778.0,61777.0,0.4748193]
[1728654913553,0.000819,61778.0,61777.0,0.4908193]
[1728654913795,0.000819,61778.0,61777.0,0.4328193]
[1728654914014,0.000819,61778.0,61777.0,0.4608193]
[1728654914262,0.000819,61778.0,61777.0,0.49960242]
[1728654914495,0.000819,61778.0,61777.0,0.4856015]
[1728654914731,0.000819,61778.0,61777.0,0.4538193]
[1728654914998,0.000819,61778.0,61777.0,0.7142482]
[1728654915246,0.000819,61778.0,61777.0,0.7282482]
[1728654915469,0.000819,61785.0,61784.0,0.57499263]
[1728654915712,0.24276755,61796.0,61795.0,0.28313863]
[1728654915938,0.24276755,61796.0,61795.0,0.61427293]
[1728654916181,0.0809,61807.0,61802.0,0.161807]
[1728654916665,0.0809,61807.0,61806.0,0.161796]
[1728654917577,0.26896297,61816.0,61813.0,0.161778]
[1728654917578,0.0831,61814.0,61813.0,0.161778]
[1728654918786,0.08591322,61814.0,61813.0,0.161778]
[1728654919497,0.0831,61814.0,61813.0,0.161778]
[1728654919982,0.0831,61814.0,61813.0,0.166778]
[1728654920219,0.0831,61814.0,61813.0,0.161778]
[1728654920455,0.2114935,61814.0,61813.0,0.161778]
[1728654920693,0.2114935,61814.0,61813.0,0.175778]
[1728654920919,0.1496866,61814.0,61813.0,0.165778]
[1728654921148,0.13455311,61814.0,61813.0,0.165778]
[1728654921391,0.11032299,61814.0,61813.0,0.165778]
[1728654921688,0.0982332,61814.0,61813.0,0.41254555]
[1728654921918,0.0982332,61814.0,61813.0,0.3430873]
[1728654921919,0.0151332,61814.0,61813.0,0.3430873]
[1728654922164,0.02619542,61816.0,61815.0,0.161773]
[1728654923161,0.02619542,61816.0,61815.0,0.33431738]
[1728654923394,0.02619542,61816.0,61815.0,0.3310823]
[1728654923620,0.02619542,61816.0,61815.0,0.3450823]
[1728654924068,0.02619542,61816.0,61815.0,0.3310823]
[1728654924308,0.02619542,61816.0,61815.0,0.3580823]
[1728654924772,0.02619542,61816.0,61815.0,0.3450823]
[1728654925008,0.02619542,61816.0,61815.0,0.3680823]
[1728654925254,0.02619542,61816.0,61815.0,0.3820823]
[1728654925508,0.02619542,61816.0,61815.0,0.5642823]
[1728654925752,0.02619542,61816.0,61815.0,0.5552823]
[1728654925995,0.02619542,61816.0,61815.0,0.4590823]
[1728654926237,0.02619542,61816.0,61815.0,0.4730823]
[1728654926475,0.02619542,61816.0,61815.0,0.4540823]
[1728654926710,0.02619542,61816.0,61815.0,0.64514348]
[1728654926943,0.02619542,61816.0,61815.0,0.67314348]
[1728654927179,0.02619542,61816.0,61815.0,0.66414348]
[1728654927418,0.02619542,61816.0,61815.0,0.67814348]
[1728654927641,0.02619542,61816.0,61815.0,0.66414348]
[1728654927864,0.02619542,61816.0,61815.0,0.67814348]
[1728654929524,0.02619542,61816.0,61815.0,5.72814348]
[1728654929761,0.02619542,61816.0,61815.0,5.73014348]
[1728654930225,0.02619542,61816.0,61815.0,5.72814348]
[1728654930929,0.02619542,61816.0,61815.0,5.72314348]
[1728654931155,0.02619542,61816.0,61815.0,5.72814348]
[1728654931611,0.02619542,61816.0,61815.0,5.73014348]
[1728654932343,4.2e-07,61819.0,61818.0,0.291765]
[1728654932570,4.2e-07,61819.0,61818.0,0.46430878]
[1728654932796,4.2e-07,61819.0,61818.0,0.4610743]
[1728654933264,4.2e-07,61819.0,61818.0,0.84319666]
[1728654933506,0.002,61824.0,61823.0,0.67387436]
[1728654933743,0.002,61824.0,61823.0,0.65212248]
[1728654934212,0.002,61824.0,61823.0,0.65012248]
[1728654934694,0.002,61824.0,61823.0,0.4450613]
[1728654934942,0.01703588,61824.0,61823.0,0.4450613]
[1728654935203,0.01703588,61824.0,61823.0,0.63612248]
[1728654935696,0.01703588,61824.0,61823.0,0.65012248]
[1728654935938,0.04,61827.0,61826.0,0.289744]
[1728654936186,0.04,61827.0,61826.0,0.4610533]
[1728654937143,0.0351,61827.0,61826.0,0.4610533]
[1728654937420,0.0351,61827.0,61826.0,0.4750533]
[1728654937657,0.0351,61827.0,61826.0,0.4610533]
[1728654937885,0.0351,61827.0,61826.0,0.4750533]
[1728654938121,0.0351,61827.0,61826.0,0.4890533]
[1728654938363,0.05927955,61827.0,61826.0,0.4870533]
[1728654938591,0.0592795,61827.0,61826.0,0.4750533]
[1728654939054,0.0592797,61827.0,61826.0,0.66611448]
[1728654939285,0.07218885,61827.0,61826.0,0.66611448]
[1728654939539,0.07218885,61827.0,61826.0,0.68011448]
[1728654940252,0.06009689,61827.0,61826.0,0.4870533]
[1728654940506,0.07218618,61827.0,61826.0,0.4870533]
[1728654941410,0.08230333,61827.0,61826.0,0.4820533]
[1728654941658,0.01612028,61843.0,61840.0,0.105]
[1728654941878,0.24276755,61845.0,61840.0,0.73451061]
[1728654942169,0.00263029,61861.0,61840.0,0.73451061]
[1728654942170,0.24276755,61865.0,61864.0,0.328286]
[1728654942428,0.24276755,61865.0,61864.0,0.45770518]
[1728654942429,0.30941552,61865.0,61864.0,0.45770518]
[1728654942666,0.03441002,61865.0,61864.0,0.294644]
[1728654942908,0.24276755,61881.0,61880.0,0.166603]
[1728654943178,0.24276755,61881.0,61880.0,0.6182077]
[1728654943179,0.03223368,61881.0,61880.0,0.6182077]
[1728654943420,0.03223368,61881.0,61880.0,0.4488984]
[1728654943652,0.0001,61888.0,61883.0,0.161594]
[1728654943878,0.0001,61888.0,61881.0,0.005]
[1728654944112,0.00808859,61887.0,61878.0,0.323215]
[1728654944344,0.0001,61888.0,61878.0,0.323215]
[1728654944345,0.03219492,61886.0,61882.0,0.323195]
[1728654944581,0.03219492,61885.0,61875.0,0.328229]
[1728654944863,0.0001,61888.0,61875.0,0.328229]
[1728654944864,0.161603,61880.0,61878.0,0.24276755]
[1728654945092,0.03219492,61884.0,61881.0,0.01]
[1728654945093,0.161597,61882.0,61881.0,0.01]
[1728654945321,0.161597,61882.0,61855.0,0.2822954]
[1728654945322,0.03216587,61882.0,61873.0,0.56600555]
[1728654945563,0.161647,61863.0,61862.0,0.24276755]
[1728654945808,0.74445395,61863.0,61862.0,0.24276755]
[1728654946069,0.93783887,61863.0,61862.0,0.01063664]
[1728654946313,0.161668,61855.0,61854.0,0.24276755]
[1728654946538,0.16975825,61855.0,61854.0,0.24276755]
[1728654946765,0.161672,61854.0,61849.0,0.161683]
[1728654947006,0.161672,61854.0,61847.0,0.24276755]
[1728654947007,0.33143825,61853.0,61847.0,0.24276755]
[1728654947266,0.33143825,61853.0,61850.0,0.01058756]
[1728654947267,0.17739955,61852.0,61850.0,0.01058756]
[1728654947502,0.00809025,61851.0,61850.0,0.16168]
[1728654947765,0.00809025,61851.0,61838.0,0.2822954]
[1728654947766,0.49228565,61851.0,61833.0,0.323451]
[1728654948004,0.49228565,61851.0,61829.0,0.24276755]
[1728654948005,0.0250968,61839.0,61836.0,0.24276755]
[1728654948261,0.02510062,61837.0,61836.0,0.24276755]
[1728654948487,0.32339,61845.0,61834.0,0.323444]
[1728654948488,0.02510062,61839.0,61834.0,0.323444]
[1728654948726,0.02510062,61839.0,61830.0,0.005]
[1728654948727,0.24276755,61835.0,61830.0,0.005]
[1728654948961,0.24276755,61835.0,61801.0,0.005]
[1728654948962,0.03319555,61834.0,61822.0,0.005]
[1728654949214,0.02510647,61827.0,61826.0,0.161743]
[1728654949451,0.02510647,61827.0,61813.0,0.323554]
[1728654949452,0.161751,61824.0,61820.0,0.161758]
[1728654949688,0.161751,61824.0,61816.0,0.323536]
[1728654949689,0.01821561,61823.0,61822.0,0.161754]
[1728654949949,0.04332422,61823.0,61822.0,0.166754]
[1728654950180,0.01012068,61823.0,61822.0,0.161754]
[1728654950410,0.01012068,61823.0,61822.0,0.166754]
[1728654950639,0.01012068,61823.0,61822.0,0.161754]
[1728654950879,0.01012068,61823.0,61822.0,0.166754]
[1728654951121,0.01112068,61823.0,61822.0,0.168754]
[1728654951352,0.01112068,61823.0,61822.0,0.17539]
[1728654951585,0.01112068,61823.0,61822.0,0.17939]
[1728654951818,0.03522799,61823.0,61822.0,0.17939]
[1728654952054,0.03522799,61823.0,61822.0,0.17539]
[1728654952285,0.03422799,61823.0,61822.0,0.16839]
[1728654952584,0.03522799,61823.0,61822.0,0.17739]
[1728654952839,0.03522799,61823.0,61822.0,0.17539]
[1728654953091,0.03622799,61823.0,61822.0,0.17539]
[1728654953330,0.03722799,61823.0,61822.0,0.18939]
[1728654953567,0.003,61823.0,61822.0,0.48693376]
[1728654953815,0.003,61823.0,61822.0,0.4886993]
[1728654954273,0.002,61823.0,61822.0,0.4816993]
[1728654954503,0.002,61823.0,61822.0,0.4956993]
[1728654954504,0.003,61823.0,61822.0,0.4956993]
[1728654954740,0.003,61823.0,61822.0,0.4906993]
[1728654954982,0.002,61823.0,61822.0,0.4746993]
[1728654955240,0.24276755,61834.0,61833.0,0.168725]
[1728654955480,0.24276755,61834.0,61833.0,0.3380343]
[1728654955709,0.24276755,61841.0,61840.0,0.161707]
[1728654955937,0.26687182,61841.0,61840.0,0.3360163]
[1728654956167,0.24276755,61859.0,61849.0,0.166684]
[1728654956168,0.02510879,61854.0,61849.0,0.166684]
[1728654956408,0.26686974,61850.0,61849.0,0.161684]
[1728654956647,0.02410219,61850.0,61849.0,0.161684]
[1728654957357,0.02410237,61850.0,61849.0,0.0172334]
[1728654957588,0.02410237,61850.0,61849.0,0.3309933]
[1728654958285,0.02410237,61850.0,61849.0,0.161684]
[1728654958518,0.02410237,61850.0,61844.0,0.323392]
[1728654958519,0.04267951,61850.0,61844.0,0.323392]
[1728654958753,0.02410237,61849.0,61831.0,0.1]
[1728654958999,0.02410237,61849.0,61827.0,0.002]
[1728654959000,0.16169,61847.0,61842.0,0.323404]
[1728654959234,0.02410237,61846.0,61833.0,0.1]
[1728654959465,0.0241099,61845.0,61835.0,0.1]
[1728654959700,0.02510663,61849.0,61846.0,0.161691]
[1728654959938,0.24276755,61844.0,61843.0,0.161699]
[1728654960174,0.52907564,61844.0,61842.0,0.014]
[1728654960444,0.52907564,61844.0,61826.0,0.34276755]
[1728654960445,0.05424733,61843.0,61840.0,0.323414]
[1728654960679,0.0802,61844.0,61843.0,0.161699]
[1728654960901,0.11937542,61844.0,61843.0,0.161699]
[1728654961127,0.11937542,61844.0,61843.0,0.17240451]
[1728654961357,0.09526747,61844.0,61843.0,0.17240451]
[1728654961862,0.119375,61844.0,61843.0,0.17240451]
[1728654962335,0.119375,61844.0,61843.0,0.01070551]
[1728654962564,0.119375,61844.0,61843.0,0.17240451]
[1728654963044,0.12949265,61844.0,61843.0,0.18640451]
[1728654963267,0.119375,61844.0,61843.0,0.17240451]
[1728654963745,0.119375,61844.0,61843.0,0.34871381]
[1728654963746,0.01506747,61844.0,61843.0,0.34871381]
[1728654963985,0.24276755,61851.0,61850.0,0.161681]
[1728654964246,0.25783444,61851.0,61850.0,0.161681]
[1728654964522,0.28194151,61851.0,61850.0,0.161681]
[1728654964767,0.28194151,61851.0,61845.0,0.323388]
[1728654964768,0.39859349,61851.0,61845.0,0.323388]
[1728654965004,0.0391744,61850.0,61845.0,0.323388]
[1728654965265,0.0391744,61849.0,61848.0,0.161684]
[1728654965775,0.0391744,61849.0,61848.0,0.17237601]
[1728654966007,0.01506689,61849.0,61848.0,0.17237601]
[1728654966490,0.01506689,61849.0,61848.0,0.18637601]
[1728654966723,0.01506689,61849.0,61848.0,0.17237601]
[1728654966962,0.24276755,61854.0,61850.0,0.161679]
[1728654967206,0.24276755,61854.0,61848.0,0.01069201]
[1728654967207,0.03917903,61853.0,61848.0,0.02469201]
[1728654967441,0.01506891,61852.0,61851.0,0.161677]
[1728654967665,0.01506891,61852.0,61850.0,0.16168]
[1728654967916,0.03917913,61851.0,61848.0,0.0011]
[1728654968236,0.03917913,61850.0,61849.0,0.48505]
[1728654968463,0.03917913,61850.0,61848.0,0.0001]
[1728654968464,0.01506891,61850.0,61848.0,0.0001]
[1728654968686,0.01506891,61849.0,61848.0,0.0141]